fUSD/lending_fUSD_20241118
["ID","MTS","AMOUNT","RATE_DAILY","PERIOD"]
[342535269,1731957174039,-153.0,0.00010079,2]
[342535270,1731957174049,-153.0,0.00010079,2]
[342535271,1731957174058,-153.0,0.00010079,2]
[342535272,1731957174068,-153.0,0.00010079,2]
[342535273,1731957174078,-153.0,0.00010079,2]
[342535274,1731957174088,-153.0,0.00010079,2]
[342535275,1731957174099,-153.0,0.00010079,2]
[342535276,1731957174112,-153.0,0.00010079,2]
[342535277,1731957174122,-153.0,0.00010079,2]
[342535278,1731957174132,-153.0,0.00010079,2]
[342535279,1731957174143,-153.0,0.00010079,2]
[342535280,1731957174153,-153.0,0.00010079,2]
[342535281,1731957174162,-153.0,0.00010079,2]
[342535282,1731957174172,-153.0,0.00010079,2]
[342535283,1731957174183,-153.0,0.00010079,2]
[342535284,1731957174192,-153.0,0.00010079,2]
[342535285,1731957174202,-153.0,0.00010079,2]
[342535286,1731957174212,-153.0,0.00010079,2]
[342535287,1731957174222,-153.0,0.00010079,2]
[342535288,1731957174235,-153.0,0.00010079,2]
[342535289,1731957174244,-153.0,0.00010079,2]
[342535290,1731957174254,-153.0,0.00010079,2]
[342535291,1731957174264,-153.0,0.00010079,2]
[342535292,1731957174274,-1091.0,0.00010081,2]
[342535293,1731957174284,-247.29365716,0.000101,2]
[342535294,1731957174294,-158.804,0.000101,2]
[342535295,1731957174305,-379.339,0.000101,2]
[342535296,1731957174316,-433.34,0.000101,2]
[342535297,1731957174325,-248.0,0.0001011,2]
[342535298,1731957174335,-203.0,0.0001011,2]
[342535299,1731957174347,-382.72,0.0001017,2]
[342535300,1731957174357,-1000.0,0.0001017,2]
[342535301,1731957174367,-869.0,0.00010171,2]
[342535302,1731957174377,-771.6,0.00010183,2]
[342535303,1731957174387,-150.0,0.00010192,2]
[342535304,1731957174398,-248.0,0.0001026,2]
[342535305,1731957174409,-203.0,0.0001026,2]
[342535306,1731957174419,-500.0,0.00010272,2]
[342535307,1731957174429,-5800.0,0.00010308,2]
[342535308,1731957174440,-5800.0,0.00010308,2]
[342535309,1731957174454,-5800.0,0.00010317,2]
[342535310,1731957174464,-5800.0,0.00010317,2]
[342535311,1731957174475,-5800.0,0.00010325,2]
[342535312,1731957174493,-2915.13038699,0.00010325,2]
[342535313,1731957174503,-5800.0,0.00010325,2]
[342535314,1731957174512,-5800.0,0.00010325,2]
[342535315,1731957174523,-248.0,0.0001041,2]
[342535316,1731957174533,-203.0,0.0001041,2]
[342535317,1731957174544,-901.68,0.00010429,2]
[342535318,1731957174555,-500.0,0.00010546,2]
[342535319,1731957174565,-248.0,0.0001055,2]
[342535320,1731957174575,-203.0,0.0001055,2]
[342535321,1731957174584,-500.0,0.00010602,2]
[342535322,1731957174594,-500.0,0.00010602,2]
[342535323,1731957174604,-500.0,0.00010602,2]
[342535324,1731957174615,-246301.0,0.00010602,2]
[342535325,1731957174625,-800.0,0.00010662,2]
[342535326,1731957174635,-800.0,0.00010662,2]
[342535327,1731957174645,-800.0,0.00010662,2]
[342535328,1731957174655,-800.0,0.00010662,2]
[342535329,1731957174665,-800.0,0.00010662,2]
[342535330,1731957174674,-800.0,0.00010669,2]
[342535331,1731957174684,-800.0,0.00010669,2]
[342535332,1731957174694,-800.0,0.00010669,2]
[342535333,1731957174704,-800.0,0.00010669,2]
[342535334,1731957174714,-800.0,0.00010669,2]
[342535335,1731957174723,-150.0,0.00010689,2]
[342535336,1731957174739,-255.26479239,0.000107,2]
[342535337,1731957174748,-248.0,0.000107,2]
[342535338,1731957174758,-203.0,0.000107,2]
[342535339,1731957174767,-1052.81742185,0.00010739,2]
[342535340,1731957174777,-1241.16153899,0.0001078,2]
[342535341,1731957174787,-1500.0,0.00010789,2]
[342535342,1731957174796,-500.0,0.00010798,2]
[342535343,1731957174806,-500.0,0.00010798,2]
[342535344,1731957174816,-500.0,0.00010798,2]
[342535345,1731957174826,-977.90119942,0.000108,2]
[342535346,1731957174836,-500.0,0.0001082,2]
[342535347,1731957174846,-248.0,0.0001084,2]
[342535348,1731957174856,-203.0,0.0001084,2]
[342535349,1731957174866,-255.0,0.00010848,2]
[342535350,1731957174875,-12045.47995705,0.0001089,2]
[342535351,1731957174885,-173.39,0.00010899,2]
[342535352,1731957174895,-5999.99999901,0.00010948,2]
[342535353,1731957174905,-500.0,0.00010957,2]
[342535354,1731957174915,-500.0,0.00010957,2]
[342535355,1731957174925,-500.0,0.00010957,2]
[342535356,1731957174935,-500.0,0.00010958,2]
[342535357,1731957174945,-500.0,0.00010958,2]
[342535358,1731957174954,-500.0,0.00010958,2]
[342535359,1731957174963,-500.0,0.00010958,2]
[342535360,1731957174973,-500.0,0.00010958,2]
[342535361,1731957174988,-397.00174569,0.00010958,2]
[342535362,1731957174997,-500.0,0.00010958,2]
[342535363,1731957175006,-500.0,0.00010958,2]
[342535364,1731957175016,-500.0,0.00010958,2]
[342535365,1731957175025,-500.0,0.00010958,2]
[342535366,1731957175035,-349.10885857,0.00010958,2]
[342535367,1731957175044,-500.0,0.00010958,2]
[342535368,1731957175054,-500.0,0.00010958,2]
[342535369,1731957175064,-500.0,0.00010958,2]
[342535370,1731957175074,-500.0,0.00010958,2]
[342535371,1731957175083,-500.0,0.00010958,2]
[342535372,1731957175093,-500.0,0.00010958,2]
[342535373,1731957175105,-500.0,0.00010958,2]
[342535374,1731957175114,-150.0,0.00010958,2]
[342535375,1731957175124,-500.0,0.00010958,2]
[342535376,1731957175135,-500.0,0.00010958,2]
[342535377,1731957175144,-500.0,0.00010958,2]
[342535378,1731957175154,-161.35973419,0.00010958,2]
[342535379,1731957175163,-500.0,0.00010958,2]
[342535380,1731957175173,-174.75283583,0.00010958,2]
[342535381,1731957175185,-500.0,0.00010958,2]
[342535382,1731957175195,-500.0,0.00010958,2]
[342535383,1731957175204,-500.0,0.00010958,2]
[342535384,1731957175214,-500.0,0.00010958,2]
[342535385,1731957175224,-500.0,0.00010958,2]
[342535386,1731957175238,-500.0,0.00010958,2]
[342535387,1731957175248,-500.0,0.00010958,2]
[342535388,1731957175258,-500.0,0.00010958,2]
[342535389,1731957175268,-500.0,0.00010958,2]
[342535390,1731957175278,-500.0,0.00010958,2]
[342535391,1731957175288,-500.0,0.00010958,2]
[342535392,1731957175298,-500.0,0.00010958,2]
[342535393,1731957175308,-500.0,0.00010958,2]
[342535394,1731957175318,-500.0,0.00010958,2]
[342535395,1731957175328,-500.0,0.00010958,2]
[342535396,1731957175338,-500.0,0.00010958,2]
[342535397,1731957175348,-500.0,0.00010958,2]
[342535398,1731957175358,-500.0,0.00010958,2]
[342535399,1731957175368,-500.0,0.00010958,2]
[342535400,1731957175378,-500.0,0.00010958,2]
[342535401,1731957175388,-500.0,0.00010958,2]
[342535402,1731957175398,-500.0,0.00010958,2]
[342535403,1731957175408,-500.0,0.00010958,2]
[342535404,1731957175419,-500.0,0.00010958,2]
[342535405,1731957175430,-500.0,0.00010958,2]
[342535406,1731957175441,-500.0,0.00010958,2]
[342535407,1731957175451,-500.0,0.00010958,2]
[342535408,1731957175462,-500.0,0.00010958,2]
[342535409,1731957175472,-500.0,0.00010958,2]
[342535410,1731957175485,-500.0,0.00010958,2]
[342535411,1731957175495,-500.0,0.00010958,2]
[342535412,1731957175504,-500.0,0.00010958,2]
[342535413,1731957175514,-500.0,0.00010958,2]
[342535414,1731957175523,-500.0,0.00010958,2]
[342535415,1731957175533,-500.0,0.00010958,2]
[342535416,1731957175543,-500.0,0.00010958,2]
[342535417,1731957175552,-500.0,0.00010958,2]
[342535418,1731957175562,-500.0,0.00010958,2]
[342535419,1731957175572,-500.0,0.00010958,2]
[342535420,1731957175582,-550.0,0.00010958,2]
[342535421,1731957175592,-500.0,0.00010958,2]
[342535422,1731957175602,-500.0,0.00010958,2]
[342535423,1731957175612,-500.0,0.00010958,2]
[342535424,1731957175622,-500.0,0.00010958,2]
[342535425,1731957175632,-500.0,0.00010958,2]
[342535426,1731957175641,-500.0,0.00010958,2]
[342535427,1731957175651,-500.0,0.00010958,2]
[342535428,1731957175661,-500.0,0.00010958,2]
[342535429,1731957175671,-500.0,0.00010958,2]
[342535430,1731957175681,-500.0,0.00010958,2]
[342535431,1731957175691,-500.0,0.00010958,2]
[342535432,1731957175700,-500.0,0.00010958,2]
[342535433,1731957175710,-500.0,0.00010958,2]
[342535434,1731957175719,-500.0,0.00010958,2]
[342535435,1731957175730,-500.0,0.00010958,2]
[342535436,1731957175741,-500.0,0.00010958,2]
[342535437,1731957175751,-500.0,0.00010958,2]
[342535438,1731957175760,-500.0,0.00010958,2]
[342535439,1731957175769,-500.0,0.00010958,2]
[342535440,1731957175780,-500.0,0.00010958,2]
[342535441,1731957175791,-500.0,0.00010958,2]
[342535442,1731957175801,-500.0,0.00010958,2]
[342535443,1731957175811,-500.0,0.00010958,2]
[342535444,1731957175820,-500.0,0.00010958,2]
[342535445,1731957175830,-500.0,0.00010958,2]
[342535446,1731957175840,-500.0,0.00010958,2]
[342535447,1731957175849,-500.0,0.00010958,2]
[342535448,1731957175859,-500.0,0.00010958,2]
[342535449,1731957175869,-500.0,0.00010958,2]
[342535450,1731957175879,-500.0,0.00010958,2]
[342535451,1731957175889,-500.0,0.00010958,2]
[342535452,1731957175899,-500.0,0.00010958,2]
[342535453,1731957175908,-500.0,0.00010958,2]
[342535454,1731957175918,-500.0,0.00010958,2]
[342535455,1731957175928,-500.0,0.00010958,2]
[342535456,1731957175938,-438.08684634,0.00010958,2]
[342535457,1731957175948,-500.0,0.00010958,2]
[342535458,1731957175958,-500.0,0.00010958,2]
[342535459,1731957175967,-500.0,0.00010958,2]
[342535460,1731957175977,-500.0,0.00010958,2]
[342535461,1731957175989,-2249.00086214,0.00010958,2]
[342535462,1731957175998,-2249.00086214,0.00010958,2]
[342535463,1731957176008,-500.0,0.00010958,2]
[342535464,1731957176018,-500.0,0.00010958,2]
[342535465,1731957176027,-2249.00086214,0.00010958,2]
[342535466,1731957176037,-500.0,0.00010958,2]
[342535467,1731957176047,-2249.00086214,0.00010958,2]
[342535468,1731957176057,-2249.00086214,0.00010958,2]
[342535469,1731957176067,-500.0,0.00010958,2]
[342535470,1731957176076,-2249.00086214,0.00010958,2]
[342535471,1731957176086,-500.0,0.00010958,2]
[342535472,1731957176101,-500.0,0.00010958,2]
[342535473,1731957176111,-2249.00086214,0.00010958,2]
[342535474,1731957176120,-171.33210108,0.00010958,2]
[342535475,1731957176130,-2249.00086214,0.00010958,2]
[342535476,1731957176142,-500.0,0.00010958,2]
[342535477,1731957176152,-2249.00086214,0.00010958,2]
[342535478,1731957176162,-500.0,0.00010958,2]
[342535479,1731957176175,-2249.00086214,0.00010958,2]
[342535480,1731957176186,-500.0,0.00010958,2]
[342535481,1731957176196,-2249.00086214,0.00010958,2]
[342535482,1731957176206,-500.0,0.00010958,2]
[342535483,1731957176215,-500.0,0.00010958,2]
[342535484,1731957176225,-2249.00086214,0.00010958,2]
[342535485,1731957176238,-500.0,0.00010958,2]
[342535486,1731957176250,-500.0,0.00010958,2]
[342535487,1731957176260,-2249.00086214,0.00010958,2]
[342535488,1731957176270,-500.0,0.00010958,2]
[342535489,1731957176280,-500.0,0.00010958,2]
[342535490,1731957176290,-500.0,0.00010958,2]
[342535491,1731957176299,-2249.00086214,0.00010958,2]
[342535492,1731957176310,-435.79274842,0.00010958,2]
[342535493,1731957176320,-2249.00086214,0.00010958,2]
[342535494,1731957176331,-500.0,0.00010958,2]
[342535495,1731957176340,-500.0,0.00010958,2]
[342535496,1731957176350,-2249.00086214,0.00010958,2]
[342535497,1731957176360,-2249.00086214,0.00010958,2]
[342535498,1731957176369,-500.0,0.00010958,2]
[342535499,1731957176377,-500.0,0.00010958,2]
[342535500,1731957176387,-2249.00086214,0.00010958,2]
[342535501,1731957176397,-500.0,0.00010958,2]
[342535502,1731957176406,-2249.00086214,0.00010958,2]
[342535503,1731957176416,-500.0,0.00010958,2]
[342535504,1731957176425,-500.0,0.00010958,2]
[342535505,1731957176434,-2249.00086214,0.00010958,2]
[342535506,1731957176443,-500.0,0.00010958,2]
[342535507,1731957176453,-500.0,0.00010958,2]
[342535508,1731957176463,-2249.00086214,0.00010958,2]
[342535509,1731957176472,-2249.00086214,0.00010958,2]
[342535510,1731957176486,-500.0,0.00010958,2]
[342535511,1731957176495,-500.0,0.00010958,2]
[342535512,1731957176505,-2249.00086214,0.00010958,2]
[342535513,1731957176515,-500.0,0.00010958,2]
[342535514,1731957176525,-500.0,0.00010958,2]
[342535515,1731957176535,-500.0,0.00010958,2]
[342535516,1731957176544,-2249.00086214,0.00010958,2]
[342535517,1731957176554,-500.0,0.00010958,2]
[342535518,1731957176564,-2249.00086214,0.00010958,2]
[342535519,1731957176574,-500.0,0.00010958,2]
[342535520,1731957176585,-500.0,0.00010958,2]
[342535521,1731957176595,-2249.00086214,0.00010958,2]
[342535522,1731957176606,-500.0,0.00010958,2]
[342535523,1731957176616,-2249.00086214,0.00010958,2]
[342535524,1731957176627,-500.0,0.00010958,2]
[342535525,1731957176636,-500.0,0.00010958,2]
[342535526,1731957176646,-2249.00086214,0.00010958,2]
[342535527,1731957176656,-500.0,0.00010958,2]
[342535528,1731957176666,-2249.00086214,0.00010958,2]
[342535529,1731957176676,-500.0,0.00010958,2]
[342535530,1731957176686,-2249.00086214,0.00010958,2]
[342535531,1731957176696,-500.0,0.00010958,2]
[342535532,1731957176706,-2249.00086214,0.00010958,2]
[342535533,1731957176716,-500.0,0.00010958,2]
[342535534,1731957176726,-2249.00086214,0.00010958,2]
[342535535,1731957176739,-2249.00086214,0.00010958,2]
[342535536,1731957176750,-500.0,0.00010958,2]
[342535537,1731957176760,-500.0,0.00010958,2]
[342535538,1731957176771,-2249.00086214,0.00010958,2]
[342535539,1731957176781,-2249.00086214,0.00010958,2]
[342535540,1731957176792,-2249.00086214,0.00010958,2]
[342535541,1731957176802,-500.0,0.00010958,2]
[342535542,1731957176812,-2249.00086214,0.00010958,2]
[342535543,1731957176822,-2249.00086214,0.00010958,2]
[342535544,1731957176832,-2249.00086214,0.00010958,2]
[342535545,1731957176842,-2249.00086214,0.00010958,2]
[342535546,1731957176852,-2249.00086216,0.00010958,2]
[342535547,1731957176861,-500.0,0.00010958,2]
[342535548,1731957176870,-2249.00086216,0.00010958,2]
[342535549,1731957176880,-500.0,0.00010958,2]
[342535550,1731957176890,-2249.00086216,0.00010958,2]
[342535551,1731957176900,-2249.00086216,0.00010958,2]
[342535552,1731957176910,-3035.27629511,0.00010958,2]
[342535553,1731957176920,-500.0,0.00010958,2]
[342535554,1731957176930,-259.66201193,0.00010958,2]
[342535555,1731957176940,-3035.27629511,0.00010958,2]
[342535556,1731957176950,-3035.27629511,0.00010958,2]
[342535557,1731957176961,-3035.27629511,0.00010958,2]
[342535558,1731957176970,-383.13951555,0.00010958,2]
[342535559,1731957176980,-3035.27629511,0.00010958,2]
[342535560,1731957176992,-3035.27629511,0.00010958,2]
[342535561,1731957177002,-3035.27629511,0.00010958,2]
[342535562,1731957177012,-3035.27629511,0.00010958,2]
[342535563,1731957177022,-3035.27629511,0.00010958,2]
[342535564,1731957177032,-3035.27629511,0.00010958,2]
[342535565,1731957177041,-3035.27629511,0.00010958,2]
[342535566,1731957177051,-3035.27629511,0.00010958,2]
[342535567,1731957177061,-3035.27629511,0.00010958,2]
[342535568,1731957177071,-3035.27629511,0.00010958,2]
[342535569,1731957177080,-3035.27629511,0.00010958,2]
[342535570,1731957177090,-3035.27629511,0.00010958,2]
[342535571,1731957177101,-3035.27629511,0.00010958,2]
[342535572,1731957177112,-3035.27629511,0.00010958,2]
[342535573,1731957177122,-3035.27629511,0.00010958,2]
[342535574,1731957177132,-3035.27629511,0.00010958,2]
[342535575,1731957177143,-3073.21724881,0.00010958,2]
[342535576,1731957177153,-3073.21724881,0.00010958,2]
[342535577,1731957177163,-3073.21724881,0.00010958,2]
[342535578,1731957177172,-3073.21724881,0.00010958,2]
[342535579,1731957177184,-3073.21724881,0.00010958,2]
[342535580,1731957177193,-3073.21724881,0.00010958,2]
[342535581,1731957177203,-3073.21724881,0.00010958,2]
[342535582,1731957177213,-3073.21724881,0.00010958,2]
[342535583,1731957177223,-200.0,0.00010959,2]
[342535584,1731957177236,-200.0,0.00010959,2]
[342535585,1731957177245,-200.0,0.00010959,2]
[342535586,1731957177255,-200.0,0.00010959,2]
[342535587,1731957177265,-200.0,0.00010959,2]
[342535588,1731957177275,-150.0,0.00010959,2]
[342535589,1731957177285,-5601.22,0.00010959,2]
[342535590,1731957177295,-30625.12,0.00010959,2]
[342535591,1731957177305,-811.58,0.00010959,2]
[342535592,1731957177315,-2720.42,0.00010959,2]
[342535593,1731957177325,-150.0,0.00010959,2]
[342535594,1731957177336,-1078.04,0.00010959,2]
[342535595,1731957177346,-2988.81,0.00010959,2]
[342535596,1731957177356,-2490.67,0.00010959,2]
[342535597,1731957177365,-2075.56,0.00010959,2]
[342535598,1731957177375,-1729.63,0.00010959,2]
[342535599,1731957177385,-525.02,0.00010959,2]
[342535600,1731957177395,-2090.48,0.00010959,2]
[342535601,1731957177407,-1441.36,0.00010959,2]
[342535602,1731957177417,-1201.14,0.00010959,2]
[342535603,1731957177427,-1000.95,0.00010959,2]
[342535604,1731957177438,-834.12,0.00010959,2]
[342535605,1731957177447,-695.1,0.00010959,2]
[342535606,1731957177457,-579.25,0.00010959,2]
[342535607,1731957177467,-482.71,0.00010959,2]
[342535608,1731957177478,-402.26,0.00010959,2]
[342535609,1731957177490,-335.21,0.00010959,2]
[342535610,1731957177499,-279.35,0.00010959,2]
[342535611,1731957177510,-939.59672744,0.0001096,2]
[342535612,1731957177520,-939.59672744,0.0001096,2]
[342535613,1731957177530,-939.59672744,0.0001096,2]
[342535614,1731957177540,-939.59672744,0.0001096,2]
[342535615,1731957177550,-939.59672744,0.0001096,2]
[342535616,1731957177560,-939.59672744,0.0001096,2]
[342535617,1731957177570,-939.59672744,0.0001096,2]
[342535618,1731957177580,-939.59672744,0.0001096,2]
[342535619,1731957177590,-939.59672744,0.0001096,2]
[342535620,1731957177600,-939.59672744,0.0001096,2]
[342535621,1731957177610,-939.59672744,0.0001096,2]
[342535622,1731957177620,-939.59672744,0.0001096,2]
[342535623,1731957177630,-939.59672744,0.0001096,2]
[342535624,1731957177640,-939.59672744,0.0001096,2]
[342535625,1731957177650,-939.59672744,0.0001096,2]
[342535626,1731957177660,-939.59672744,0.0001096,2]
[342535627,1731957177670,-939.59672744,0.0001096,2]
[342535628,1731957177680,-939.59672744,0.0001096,2]
[342535629,1731957177690,-939.59672744,0.0001096,2]
[342535630,1731957177699,-939.59,0.0001096,2]
[342535631,1731957177709,-1409.39509116,0.0001096,2]
[342535632,1731957177719,-1409.39509116,0.0001096,2]
[342535633,1731957177729,-1409.39509116,0.0001096,2]
[342535634,1731957177742,-1409.39509116,0.0001096,2]
[342535635,1731957177752,-1409.39509116,0.0001096,2]
[342535636,1731957177762,-1409.39509116,0.0001096,2]
[342535637,1731957177772,-1409.39509116,0.0001096,2]
[342535638,1731957177782,-1409.39509116,0.0001096,2]
[342535639,1731957177792,-1409.39509116,0.0001096,2]
[342535640,1731957177803,-1409.39509116,0.0001096,2]
[342535641,1731957177814,-1409.39509116,0.0001096,2]
[342535642,1731957177824,-1409.39509116,0.0001096,2]
[342535643,1731957177835,-1409.39509116,0.0001096,2]
[342535644,1731957177845,-1409.39509116,0.0001096,2]
[342535645,1731957177855,-1409.39509116,0.0001096,2]
[342535646,1731957177865,-1409.39509116,0.0001096,2]
[342535647,1731957177875,-1409.39509116,0.0001096,2]
[342535648,1731957177884,-1409.39509116,0.0001096,2]
[342535649,1731957177894,-1409.39509116,0.0001096,2]
[342535650,1731957177904,-1409.39,0.0001096,2]
[342535651,1731957177914,-248.0,0.0001099,2]
[342535652,1731957177924,-203.0,0.0001099,2]
[342535653,1731957177934,-500.0,0.00010997,2]
[342535654,1731957177944,-500.0,0.00010997,2]
[342535655,1731957177954,-500.0,0.00010998,2]
[342535656,1731957177964,-500.0,0.00010998,2]
[342535657,1731957177974,-500.0,0.00010998,2]
[342535658,1731957177986,-500.0,0.00010998,2]
[342535659,1731957177997,-538.10143477,0.00010998,2]
[342535660,1731957178006,-500.0,0.00010998,2]
[342535661,1731957178016,-1000.0,0.00010998,2]
[342535662,1731957178026,-1241218.23807809,0.00010999,2]
[342535663,1731957178036,-221000.08520435,0.00010999,2]
[342535664,1731957178046,-1000.0,0.00010999,2]
[342535665,1731957178056,-1000.0,0.00010999,2]
[342535666,1731957178066,-1000.0,0.00010999,2]
[342535667,1731957178075,-1000.0,0.00010999,2]
[342535668,1731957178085,-1000.0,0.00010999,2]
[342535669,1731957178095,-150.0,0.00010999,2]
[342535670,1731957178108,-500.0,0.00010999,2]
[342535671,1731957178119,-500.0,0.00010999,2]
[342535672,1731957178128,-500.0,0.00010999,2]
[342535673,1731957178139,-160.39,0.00010999,2]
[342535674,1731957178151,-1000.0,0.00010999,2]
[342535675,1731957178161,-21012022.06708187,0.00011,2]
[342535676,1731957178171,-5368491.48596454,0.00011,2]
[342535677,1731957178182,-4695243.30359661,0.00011,2]
[342535678,1731957178192,-5522760.93316731,0.00011,2]
[342535679,1731957178202,-4006764.30277061,0.00011,2]
[342535680,1731957178213,-290388.39012533,0.00011,2]
[342535681,1731957178223,-201.6,0.00011,2]
[342535682,1731957178237,-130660.63073569,0.00011,2]
[342535683,1731957178246,-201.6,0.00011,2]
[342535684,1731957178256,-201.6,0.00011,2]
[342535685,1731957178266,-474751.36394449,0.00011,2]
[342535686,1731957178276,-113591.59589306,0.00011,2]
[342535687,1731957178287,-201.6,0.00011,2]
[342535688,1731957178297,-204.0,0.00011,2]
[342535689,1731957178308,-306.0,0.00011,2]
[342535690,1731957178318,-201.0,0.00011,2]
[342535691,1731957178329,-201.0,0.00011,2]
[342535692,1731957178339,-3894286.14135421,0.00011,2]
[342535693,1731957179058,-290.60647777,9.875e-05,2]
[342535694,1731957179080,-209.39352223,9.875e-05,2]
[342535695,1731957179090,-122.13237065,9.875e-05,2]
[342535696,1731957179108,-377.86762935,9.875e-05,2]
[342535697,1731957179118,-500.0,9.974e-05,2]
[342535698,1731957179128,-500.0,9.975e-05,2]
[342535699,1731957179139,-140.13237065,9.976e-05,2]
[342535700,1731957179372,-359.86762935,9.976e-05,2]
[342535701,1731957179382,-500.0,9.976e-05,2]
[342535702,1731957179392,-500.0,9.978e-05,2]
[342535703,1731957179403,-500.0,9.996e-05,2]
[342535704,1731957179413,-500.0,9.997e-05,2]
[342535705,1731957179424,-500.0,9.997e-05,2]
[342535706,1731957179433,-500.0,9.997e-05,2]
[342535707,1731957179443,-500.0,9.997e-05,2]
[342535708,1731957179452,-500.0,9.997e-05,2]
[342535709,1731957179462,-500.0,9.997e-05,2]
[342535710,1731957179472,-500.0,9.997e-05,2]
[342535711,1731957179482,-500.0,9.997e-05,2]
[342535712,1731957179497,-500.0,9.997e-05,2]
[342535713,1731957179509,-163.6225201,9.997e-05,2]
[342535714,1731957179519,-500.0,9.997e-05,2]
[342535715,1731957179529,-500.0,9.997e-05,2]
[342535716,1731957179538,-559.21,9.998e-05,2]
[342535717,1731957179547,-559.21,9.998e-05,2]
[342535718,1731957179558,-559.21,9.998e-05,2]
[342535719,1731957179568,-559.21,9.998e-05,2]
[342535720,1731957179578,-559.21,9.998e-05,2]
[342535721,1731957179587,-559.21,9.998e-05,2]
[342535722,1731957179598,-559.29919682,9.998e-05,2]
[342535723,1731957179608,-6208.43471154,0.00011,2]
[342535724,1731957179667,-500.0,9.997e-05,2]
[342535725,1731957179677,-4048.9982866,0.00011,2]
[342535726,1731957179690,-6871.02607722,0.00011,2]
[342535750,1731957888001,811.51,8.219e-05,2]
[342535755,1731957952455,1000.0,0.0002361,120]
[342535788,1731958206237,16000.0,0.0002361,120]
[342535806,1731958231935,-770.36,9.124e-05,2]
[342535807,1731958231946,-128.6513312,9.249e-05,2]
[342535808,1731958231958,-121.3486688,9.249e-05,2]
[342535809,1731958231967,-1000.0,9.334e-05,2]
[342535810,1731958231977,-167.0,9.378e-05,2]
[342535811,1731958231986,-300.0,9.775e-05,2]
[342535812,1731958231995,-150.0,9.775e-05,2]
[342535813,1731958232004,-718.65702109,9.776e-05,2]
[342535814,1731958232035,-629.999999,9.776e-05,2]
[342535815,1731958232136,-406.08666175,9.776e-05,2]
[342535816,1731958232147,-7492.01597406,9.776e-05,2]
[342535820,1731958232209,-13768.2164441,9.776e-05,2]
[342535822,1731958232218,-1892.1219,9.776e-05,2]
[342535824,1731958232228,-510.4587,9.776e-05,2]
[342535826,1731958232237,-1018.0,9.86e-05,2]
[342535828,1731958232246,-1677.37339294,9.874e-05,2]
[342535830,1731958232255,-615.89,9.875e-05,2]
[342535832,1731958232264,-615.89,9.875e-05,2]
[342535834,1731958232273,-718.58,9.875e-05,2]
[342535835,1731958232283,-718.58,9.875e-05,2]
[342535837,1731958232292,-639.57,9.875e-05,2]
[342535839,1731958232301,-639.57,9.875e-05,2]
[342535841,1731958232310,-500.0,9.875e-05,2]
[342535843,1731958232319,-500.0,9.875e-05,2]
[342535845,1731958232328,-500.0,9.875e-05,2]
[342535847,1731958232337,-500.0,9.875e-05,2]
[342535849,1731958232346,-500.0,9.875e-05,2]
[342535851,1731958232355,-500.0,9.875e-05,2]
[342535853,1731958232365,-500.0,9.875e-05,2]
[342535855,1731958232375,-500.0,9.875e-05,2]
[342535857,1731958232384,-952.8,9.875e-05,2]
[342535859,1731958232394,-952.8,9.875e-05,2]
[342535861,1731958232403,-500.0,9.875e-05,2]
[342535863,1731958232412,-500.0,9.875e-05,2]
[342535865,1731958232422,-500.0,9.875e-05,2]
[342535867,1731958232431,-500.0,9.875e-05,2]
[342535869,1731958232443,-671.48,9.875e-05,2]
[342535871,1731958232452,-671.48,9.875e-05,2]
[342535872,1731958232461,-500.0,9.875e-05,2]